bitfinex/quotes_SOLUSD_20230113
["timestamp","ask_amount","ask_price","bid_price","bid_amount"]
[1673651060710,116.7015,18.204,18.183,44.03661519]
[1673651060899,116.7015,18.204,18.183,20.0]
[1673651061116,116.7015,18.204,18.183,44.03661519]
[1673651061323,116.7015,18.204,18.184,24.03661519]
[1673651061532,116.7015,18.204,18.185,20.0]
[1673651062176,20.0,18.203,18.186,24.03661519]
[1673651062387,20.0,18.203,18.187,20.0]
[1673651062588,20.0,18.203,18.18,20.0]
[1673651062802,20.0,18.202,18.161,68.3388]
[1673651063020,20.0,18.201,18.181,24.03661519]
[1673651063230,20.0,18.2,18.181,24.03661519]
[1673651063448,134.3912,18.2,18.181,24.03661519]
[1673651063767,31.1133535,18.205,18.181,24.03661519]
[1673651063963,31.1133535,18.205,18.182,43.14676591]
[1673651064174,31.1133535,18.205,18.183,20.0]
[1673651064383,31.1133535,18.205,18.183,24.03661519]
[1673651064594,31.1133535,18.205,18.184,24.03661519]
[1673651064801,31.1133535,18.205,18.185,20.0]
[1673651065010,31.1133535,18.205,18.174,44.03661519]
[1673651065246,20.0,18.204,18.175,20.0]
[1673651065437,31.1133535,18.205,18.175,44.03661519]
[1673651065642,31.1133535,18.205,18.176,20.0]
[1673651066068,31.1133535,18.205,18.176,44.03661519]
[1673651066286,20.0,18.204,18.177,44.03661519]
[1673651066494,20.0,18.204,18.178,20.0]
[1673651066712,20.0,18.204,18.178,44.03661519]
[1673651066910,20.0,18.204,18.179,24.03661519]
[1673651067237,20.0,18.204,18.181,20.0]
[1673651067434,31.1133535,18.205,18.181,20.0]
[1673651067645,31.1133535,18.205,18.182,24.03661519]
[1673651068066,31.1133535,18.205,18.183,20.0]
[1673651068396,31.1133535,18.205,18.184,44.03661519]
[1673651068920,31.1133535,18.205,18.186,20.0]
[1673651069132,31.1133535,18.205,18.188,20.0]
[1673651069320,31.1133535,18.205,18.189,20.0]
[1673651069530,31.1133535,18.205,18.189,44.03661519]
[1673651069964,31.1133535,18.205,18.191,20.0]
[1673651070175,31.1133535,18.205,18.192,20.0]
[1673651070372,31.1133535,18.205,18.192,44.03661519]
[1673651070577,31.1133535,18.205,18.193,24.03661519]
[1673651070811,31.1133535,18.205,18.194,20.0]
[1673651071227,31.1133535,18.205,18.192,20.0]
[1673651071442,31.1133535,18.205,18.189,20.0]
[1673651071660,31.1133535,18.205,18.192,24.03661519]
[1673651072175,31.1133535,18.205,18.193,20.0]
[1673651072594,31.1133535,18.205,18.194,24.03661519]
[1673651072793,31.1133535,18.205,18.195,20.0]
[1673651073227,31.1133535,18.205,18.196,24.03661519]
[1673651073650,31.1133535,18.205,18.198,20.0]
[1673651073859,31.1133535,18.205,18.199,20.0]
[1673651074052,31.1133535,18.205,18.199,44.03661519]
[1673651074270,21.970511,18.216,18.201,20.0]
[1673651074490,21.970511,18.216,18.202,20.0]
[1673651074805,21.970511,18.216,18.203,44.03661519]
[1673651075223,21.970511,18.216,18.204,44.03661519]
[1673651075546,21.970511,18.216,18.205,24.03661519]
[1673651075855,21.970511,18.216,18.206,20.0]
[1673651076255,21.970511,18.216,18.207,24.03661519]
[1673651076802,21.970511,18.216,18.208,20.0]
[1673651077841,21.970511,18.216,18.208,44.04559719]
[1673651078263,21.970511,18.216,18.208,20.0]
[1673651078788,21.970511,18.216,18.202,20.0]
[1673651079003,21.970511,18.216,18.207,24.04559719]
[1673651079219,21.970511,18.216,18.208,20.0]
[1673651079749,21.970511,18.216,18.209,24.04559719]
[1673651080150,21.970511,18.216,18.21,20.0]
[1673651080887,118.4114,18.219,18.21,20.0]
[1673651081224,118.4114,18.219,18.209,20.0]
[1673651082373,118.4114,18.219,18.204,20.0]
[1673651082778,118.4114,18.219,18.205,24.04559719]
[1673651083210,20.0,18.218,18.206,20.0]
[1673651083738,20.0,18.218,18.195,20.0]
[1673651084245,20.0,18.218,18.193,20.0]
[1673651084455,20.0,18.218,18.183,161.8]
[1673651084456,17.0,18.217,18.181,392.3]
[1673651084667,24.32342184,18.216,18.181,392.3]
[1673651084876,68.57477599,18.216,18.181,20.0]
[1673651085209,4.32342184,18.214,18.182,6.34609]
[1673651085419,24.32342184,18.214,18.182,6.34609]
[1673651085832,20.0,18.213,18.182,6.34609]
[1673651086041,4.32342184,18.212,18.182,6.34609]
[1673651086247,4.32342184,18.212,18.184,20.0]
[1673651086673,4.32342184,18.215,18.185,50.39063719]
[1673651086900,4.32342184,18.217,18.185,67.80027754]
[1673651087083,32.89543307,18.215,18.18,392.3]
[1673651087300,20.0,18.213,18.175,20.0]
[1673651087635,24.32342184,18.212,18.177,24.04559719]
[1673651087841,37.0,18.211,18.173,36.46283596]
[1673651088045,130.8197,18.21,18.171,20.0]
[1673651088260,21.32342184,18.209,18.164,230.9041]
[1673651088579,20.0,18.206,18.172,24.04559719]
[1673651088767,4.32342184,18.204,18.166,20.0]
[1673651088977,4.32342184,18.202,18.167,24.04559719]
[1673651089186,20.0,18.203,18.167,24.04559719]
[1673651089187,4.32342184,18.2,18.167,24.04559719]
[1673651089413,4.32342184,18.198,18.167,30.39692719]
[1673651089621,20.0,18.197,18.169,20.0]
[1673651089829,4.32342184,18.196,18.169,20.0]
[1673651090041,4.32342184,18.196,18.17,24.04559719]
[1673651090447,4.32342184,18.196,18.169,20.0]
[1673651090882,4.32342184,18.196,18.169,26.35063]
[1673651091203,4.32342184,18.196,18.171,20.0]
[1673651091411,4.32342184,18.197,18.172,20.0]
[1673651091619,4.32342184,18.197,18.172,44.04559719]
[1673651091837,4.32342184,18.197,18.173,44.04559719]
[1673651092043,4.32342184,18.197,18.174,20.0]
[1673651093605,4.32342184,18.197,18.174,44.04559719]
[1673651094035,4.32342184,18.197,18.174,20.0]
[1673651094245,4.32342184,18.197,18.167,20.0]
[1673651094996,4.32342184,18.197,18.168,24.04559719]
[1673651095305,4.32342184,18.197,18.169,20.0]
[1673651095725,4.32342184,18.197,18.169,44.04559719]
[1673651096037,4.32342184,18.197,18.169,20.0]
[1673651096251,4.32342184,18.195,18.148,70.1689]
[1673651096443,4.32342184,18.193,18.149,6.35762]
[1673651096649,4.32342184,18.191,18.149,6.35762]
[1673651096989,17.0,18.192,18.15,44.04559719]
[1673651096990,4.32342184,18.188,18.15,44.04559719]
[1673651097180,4.32342184,18.188,18.15,50.40286719]
[1673651097392,17.0,18.187,18.151,24.04559719]
[1673651097708,4.32342184,18.184,18.152,20.0]
[1673651098118,49.16133599,18.184,18.153,24.04559719]
[1673651098325,49.16133599,18.184,18.154,6.35587]
[1673651098541,4.32342184,18.188,18.154,6.35587]
[1673651098982,4.32342184,18.188,18.155,24.04559719]
[1673651099181,4.32342184,18.188,18.155,30.40111719]
[1673651099625,17.0,18.187,18.156,44.04559719]
[1673651099939,24.32342184,18.186,18.157,24.04559719]
[1673651100148,4.32342184,18.183,18.157,24.04559719]
[1673651100350,4.32342184,18.183,18.158,20.0]
[1673651100769,4.32342184,18.183,18.159,24.04559719]
[1673651101187,4.32342184,18.183,18.16,20.0]
[1673651101387,4.32342184,18.185,18.161,20.0]
[1673651101602,4.32342184,18.188,18.162,20.0]
[1673651101825,4.32342184,18.188,18.163,20.0]
[1673651102228,4.32342184,18.188,18.164,20.0]
[1673651102453,4.32342184,18.188,18.164,44.04559719]
[1673651103074,20.0,18.187,18.164,20.0]
[1673651103282,4.32342184,18.186,18.161,24.04559719]
[1673651103510,4.32342184,18.186,18.162,20.0]
[1673651104134,4.32342184,18.186,18.156,20.0]
[1673651104540,4.32342184,18.186,18.157,24.04559719]
[1673651104764,24.32342184,18.184,18.148,20.0]
[1673651104979,4.32342184,18.182,18.15,24.04559719]
[1673651105173,4.32342184,18.18,18.15,24.04559719]
[1673651105382,4.32342184,18.178,18.15,24.04559719]
[1673651106795,4.32342184,18.178,18.141,20.0]
[1673651106965,4.32342184,18.178,18.144,24.04559719]
[1673651106966,4.32342184,18.176,18.144,24.04559719]
[1673651107177,20.0,18.174,18.145,20.0]
[1673651107400,4.32342184,18.173,18.144,24.04559719]
[1673651107803,4.32342184,18.176,18.145,199.09240471]
[1673651108016,4.32342184,18.176,18.146,6.35868]
[1673651108240,4.32342184,18.178,18.147,20.0]
[1673651108448,4.32342184,18.178,18.148,26.35797]
[1673651108659,4.32342184,18.178,18.149,6.35762]
[1673651108857,4.32342184,18.178,18.15,17.0]
[1673651109071,4.32342184,18.178,18.151,20.0]
[1673651109291,4.32342184,18.178,18.152,20.0]
[1673651109507,4.32342184,18.179,18.152,20.0]
[1673651109714,4.32342184,18.179,18.154,20.0]
[1673651109910,20.0,18.179,18.154,20.0]
[1673651110343,110.4362,18.18,18.156,20.0]
[1673651110768,110.4362,18.18,18.157,24.04559719]
[1673651110979,110.4362,18.18,18.158,20.0]
[1673651111190,110.4362,18.18,18.16,20.0]
[1673651111632,110.4362,18.18,18.161,24.04559719]
[1673651111836,110.4362,18.18,18.162,37.0]
[1673651112045,110.4362,18.18,18.162,20.0]
[1673651112471,1.48991687,18.179,18.162,20.0]
[1673651112679,21.48991687,18.179,18.152,20.0]
[1673651112877,21.48991687,18.179,18.149,20.0]
[1673651113082,21.48991687,18.179,18.149,44.04559719]
[1673651113299,21.48991687,18.179,18.142,20.0]
[1673651113630,20.0,18.177,18.147,20.0]
[1673651113826,130.4362,18.18,18.147,20.0]
[1673651113827,2.12254818,18.176,18.148,6.35797]
[1673651114040,110.4362,18.18,18.149,20.0]
[1673651114359,110.4362,18.18,18.15,6.35727]
[1673651114579,110.4362,18.18,18.151,20.0]
[1673651114884,110.4362,18.18,18.152,26.35657]
[1673651115101,110.4362,18.18,18.154,20.0]
[1673651115294,110.4362,18.18,18.155,26.35552]
[1673651115711,110.4362,18.18,18.156,44.04559719]
[1673651115936,110.4362,18.18,18.157,17.0]
[1673651116147,110.4362,18.18,18.158,20.0]
[1673651116359,30.0,18.208,18.159,37.0]
[1673651116558,30.0,18.208,18.16,168.15377]
[1673651116762,161.8,18.207,18.161,26.35342]
[1673651116988,20.0,18.188,18.163,20.0]
[1673651117182,20.0,18.188,18.164,20.0]
[1673651117394,112.2221,18.189,18.164,44.04559719]
[1673651117729,112.2221,18.189,18.165,44.04559719]
[1673651117936,112.2221,18.189,18.166,20.0]
[1673651118254,20.0,18.188,18.166,20.0]
[1673651118440,17.0,18.187,18.166,20.0]
[1673651118651,20.0,18.186,18.146,122.91154985]
[1673651118862,20.0,18.184,18.151,26.35692]
[1673651119092,20.0,18.184,18.152,30.40216719]
[1673651119287,20.0,18.186,18.153,6.35622]
[1673651119618,20.0,18.188,18.155,20.0]
[1673651119808,20.0,18.188,18.156,6.35517]
[1673651120018,20.0,18.188,18.156,24.04559719]
[1673651120444,20.0,18.188,18.157,24.04559719]
[1673651120657,20.0,18.188,18.158,20.0]
[1673651121079,20.0,18.188,18.159,24.04559719]
[1673651121395,20.0,18.188,18.16,20.0]
[1673651121822,20.0,18.186,18.161,24.04559719]
[1673651122252,20.0,18.186,18.162,20.0]
[1673651122780,17.0,18.185,18.162,20.0]
[1673651123403,20.0,18.184,18.162,20.0]
[1673651123729,20.0,18.184,18.161,20.0]
[1673651124248,20.0,18.188,18.162,24.04559719]
[1673651124651,20.0,18.188,18.163,20.0]
[1673651125826,20.0,18.186,18.163,20.0]
[1673651126030,20.0,18.186,18.163,44.15721881]
[1673651126247,132.2221,18.189,18.163,44.15721881]
[1673651126456,112.2221,18.189,18.163,44.15721881]
[1673651127193,112.2221,18.189,18.164,6.35237]
[1673651127378,112.2221,18.189,18.166,20.0]
[1673651127593,20.0,18.199,18.167,6.35133]
[1673651127803,20.0,18.197,18.169,20.0]
[1673651128017,20.0,18.197,18.17,26.35028]
[1673651128234,20.0,18.197,18.171,26.34993]
[1673651128555,113.4731,18.198,18.173,20.0]
[1673651128747,113.4731,18.198,18.174,20.0]
[1673651128954,20.0,18.197,18.174,44.15721881]
[1673651129804,20.0,18.197,18.174,20.0]
[1673651130015,20.0,18.197,18.167,20.0]
[1673651130226,20.0,18.197,18.164,20.0]
[1673651130431,20.0,18.197,18.167,20.0]
[1673651130641,20.0,18.197,18.167,40.0]
[1673651130852,20.0,18.197,18.168,20.0]
[1673651131277,17.0,18.196,18.168,20.0]
[1673651131486,20.0,18.195,18.169,24.15721881]
[1673651131698,20.0,18.195,18.17,20.0]
[1673651132658,20.0,18.195,18.17,44.15721881]
[1673651133797,20.0,18.197,18.17,44.15721881]
[1673651134766,113.4731,18.198,18.17,44.15721881]
[1673651134957,20.0,18.197,18.17,44.15721881]
[1673651136115,113.4731,18.198,18.17,44.15721881]
[1673651136314,113.4731,18.198,18.171,20.0]
[1673651136526,113.4731,18.198,18.172,20.0]
[1673651136736,20.0,18.197,18.172,20.0]
[1673651137381,20.0,18.197,18.167,20.0]
[1673651137701,20.0,18.197,18.165,20.0]
[1673651139599,17.0,18.196,18.157,161.8]
[1673651139791,37.0,18.196,18.16,6.35377]
[1673651140434,20.0,18.195,18.161,20.0]
[1673651140647,20.0,18.193,18.161,20.0]
[1673651140839,20.0,18.192,18.161,20.0]
[1673651141048,20.0,18.191,18.161,20.0]
[1673651141260,20.0,18.189,18.16,6.35377]
[1673651141469,114.1323,18.188,18.158,554.1]
[1673651141687,114.1323,18.188,18.159,6.35412]
[1673651142430,113.6323,18.188,18.161,161.8]
[1673651142645,113.6323,18.188,18.162,6.35307]
[1673651142855,113.6323,18.188,18.162,26.35307]
[1673651143052,113.6323,18.188,18.163,37.0]
[1673651143262,113.6323,18.188,18.165,20.0]
[1673651143472,113.1323,18.188,18.165,20.0]
[1673651143902,110.8197,18.2,18.165,20.0]
[1673651144113,110.8197,18.2,18.166,6.35167]
[1673651144302,110.8197,18.2,18.168,20.0]
[1673651144626,110.8197,18.2,18.17,161.8]
[1673651144840,20.0,18.219,18.171,26.34993]
[1673651145037,20.0,18.219,18.172,168.14958]
[1673651145255,20.0,18.219,18.174,20.0]
[1673651145463,20.0,18.219,18.175,26.34853]
[1673651145677,118.4224,18.21,18.176,26.34818]
[1673651145887,118.4224,18.21,18.177,26.34783]
[1673651146101,118.4224,18.21,18.178,6.34748]
[1673651146421,117.9224,18.21,18.18,20.0]
[1673651146637,117.9224,18.21,18.181,26.34643]
[1673651146838,117.9224,18.21,18.183,20.0]
[1673651147043,117.4224,18.21,18.184,6.34539]
[1673651147250,117.4224,18.21,18.185,20.0]
[1673651147461,117.4224,18.21,18.185,26.34504]
[1673651147772,117.4224,18.21,18.186,6.34469]
[1673651147981,116.9224,18.21,18.188,20.0]
[1673651148217,20.0,18.209,18.189,20.0]
[1673651148854,135.3743,18.209,18.189,20.0]
[1673651150116,135.3743,18.209,18.188,6.34399]
[1673651150309,135.3743,18.209,18.172,20.0]
[1673651150521,135.3743,18.209,18.174,6.34888]
[1673651151167,20.0,18.207,18.174,6.34888]
[1673651151701,20.0,18.207,18.176,20.0]
[1673651151917,20.0,18.207,18.178,20.0]
[1673651152225,20.0,18.207,18.179,20.0]
[1673651153798,20.0,18.207,18.177,20.0]
[1673651154209,20.0,18.208,18.178,20.0]
[1673651154420,20.0,18.208,18.179,20.0]
[1673651155778,17.0,18.207,18.175,20.0]
[1673651156199,20.0,18.206,18.175,20.0]
[1673651156408,17.0,18.205,18.175,20.0]
[1673651156622,178.8,18.205,18.161,70.9847]
[1673651156855,20.0,18.204,18.165,6.35202]
[1673651157064,20.0,18.202,18.165,6.35202]
[1673651157373,40.25379833,18.201,18.165,6.35202]
[1673651157775,3.25379833,18.199,18.166,6.35167]
[1673651157987,3.25379833,18.197,18.166,6.35167]
[1673651159768,3.25379833,18.197,18.167,20.0]
[1673651159980,47.02646495,18.197,18.154,392.3]
[1673651160302,20.0,18.195,18.155,26.35552]
[1673651160513,4.04426279,18.194,18.156,6.35517]
[1673651160842,6.37995,18.193,18.155,20.0]
[1673651161029,202.87263473,18.192,18.149,20.0]
[1673651161245,191.8,18.189,18.15,6.35727]
[1673651161456,159.99692184,18.188,18.15,6.35727]
[1673651161883,20.0,18.187,18.15,6.35727]
[1673651162220,41.32342184,18.186,18.15,6.35727]
[1673651162396,20.0,18.185,18.15,6.35727]
[1673651162610,4.32342184,18.183,18.15,6.35727]
[1673651162825,4.32342184,18.187,18.15,6.35727]
[1673651163042,4.32342184,18.187,18.15,168.15727]
[1673651163354,4.32342184,18.187,18.152,161.8]
[1673651163675,4.32342184,18.187,18.154,20.0]
[1673651163887,4.32342184,18.187,18.155,6.35552]
[1673651164081,4.32342184,18.187,18.157,161.8]
[1673651164407,118.6735,18.188,18.159,20.0]
[1673651164603,1.59695136,18.187,18.159,20.0]
[1673651164816,1.59695136,18.187,18.16,26.35377]
[1673651165133,118.6735,18.188,18.162,20.0]
[1673651165333,118.6735,18.188,18.164,20.0]
[1673651165545,118.6735,18.188,18.165,20.0]
[1673651166174,112.657,18.2,18.166,20.0]
[1673651166382,115.034,18.199,18.167,26.35133]
[1673651166607,115.034,18.199,18.168,6.35098]
[1673651166813,115.034,18.199,18.17,20.0]
[1673651167136,115.034,18.199,18.171,6.34993]
[1673651167331,115.034,18.199,18.172,20.0]
[1673651167543,115.034,18.199,18.173,6.34923]
[1673651167750,115.034,18.199,18.174,20.0]
[1673651167976,20.0,18.198,18.173,6.34923]
[1673651169033,20.0,18.198,18.167,20.0]
[1673651169224,20.0,18.198,18.167,6.35133]
[1673651169745,17.0,18.197,18.167,6.35133]
[1673651169959,20.0,18.198,18.168,20.0]
[1673651170803,135.034,18.199,18.169,20.0]
[1673651170804,115.034,18.199,18.169,20.0]
[1673651171015,115.034,18.199,18.17,20.0]
[1673651171233,115.034,18.199,18.172,20.0]
[1673651171972,20.0,18.198,18.172,20.0]
[1673651172167,20.0,18.198,18.171,20.0]
[1673651173325,20.0,18.198,18.172,24.16151863]
[1673651173665,135.034,18.199,18.172,24.16151863]
[1673651173845,115.034,18.199,18.173,20.0]
[1673651174055,115.034,18.199,18.174,20.0]
[1673651174274,115.034,18.199,18.174,44.16151863]
[1673651174598,115.034,18.199,18.174,24.16151863]
[1673651174804,115.034,18.199,18.176,20.0]
[1673651175212,115.034,18.199,18.177,20.0]
[1673651175748,115.034,18.199,18.178,44.16151863]
[1673651175955,115.034,18.199,18.18,20.0]
[1673651176159,115.034,18.199,18.181,20.0]
[1673651176369,115.034,18.199,18.176,20.0]
[1673651176582,20.0,18.198,18.177,20.0]
[1673651177231,20.0,18.198,18.174,24.16151863]
[1673651177448,20.0,18.198,18.176,20.0]
[1673651177757,20.0,18.198,18.177,20.0]
[1673651178168,20.0,18.198,18.175,20.0]
[1673651181639,17.0,18.197,18.175,20.0]
[1673651181842,17.0,18.197,18.153,54.18717626]
[1673651181843,20.0,18.196,18.166,20.0]
[1673651182046,40.73060002,18.195,18.156,20.0]
[1673651182278,40.73060002,18.195,18.166,24.15939944]
[1673651182807,20.0,18.194,18.157,6.35482]
[1673651183018,40.73060002,18.193,18.157,6.35482]
[1673651183228,40.73060002,18.193,18.158,24.78500277]
[1673651183229,75.67497349,18.193,18.158,24.78500277]
[1673651183430,237.47497349,18.193,18.158,24.78500277]
[1673651183640,2.14279338,18.192,18.158,24.78500277]
[1673651183835,23.73060002,18.191,18.158,24.78500277]
[1673651184045,20.0,18.189,18.16,20.0]
[1673651184284,3.73060002,18.188,18.161,20.0]
[1673651184471,3.73060002,18.188,18.161,44.78500277]
[1673651184794,3.73060002,18.186,18.161,20.0]
[1673651185214,20.73060002,18.186,18.158,44.78500277]
[1673651185409,20.0,18.185,18.158,44.78500277]
[1673651185624,3.73060002,18.184,18.158,44.78500277]
[1673651186263,3.73060002,18.184,18.158,20.0]
[1673651186472,3.73060002,18.184,18.153,24.78500277]
[1673651186672,3.73060002,18.184,18.154,20.0]
[1673651186891,3.73060002,18.184,18.155,20.0]
[1673651187100,3.73060002,18.184,18.155,44.78500277]
[1673651187310,3.73060002,18.184,18.157,20.0]
[1673651187642,3.73060002,18.188,18.158,44.78500277]
[1673651187829,3.73060002,18.188,18.159,20.0]
[1673651188163,3.73060002,18.189,18.159,44.78500277]
[1673651188370,20.0,18.189,18.16,44.78500277]
[1673651188585,1.59688948,18.188,18.16,24.78500277]
[1673651188777,20.0,18.189,18.162,20.0]
[1673651188978,20.0,18.189,18.163,20.0]
[1673651189191,20.0,18.189,18.163,44.78500277]
[1673651189406,20.0,18.189,18.164,44.78500277]
[1673651189618,20.0,18.189,18.165,20.0]
[1673651190356,20.0,18.189,18.166,17.0]
[1673651190575,20.0,18.189,18.167,20.0]
[1673651190895,40.0,18.189,18.167,20.0]
[1673651191301,20.0,18.188,18.165,20.0]
[1673651191729,20.0,18.186,18.16,20.0]
[1673651192577,1.57212293,18.184,18.16,20.0]
[1673651192780,41.57212293,18.184,18.158,20.0]
[1673651192995,3.26486976,18.182,18.156,24.78500277]
[1673651193212,3.26486976,18.18,18.156,24.78500277]
[1673651193426,3.71703857,18.178,18.156,24.78500277]
[1673651193641,20.0,18.177,18.156,24.78500277]
[1673651193959,3.72051913,18.176,18.146,74.4927]
[1673651194285,3.72051913,18.176,18.146,24.78500277]
[1673651194464,3.72051913,18.176,18.146,31.14368277]
[1673651194676,3.72051913,18.176,18.147,20.0]
[1673651195087,3.72051913,18.176,18.148,24.78500277]
[1673651196040,3.72051913,18.178,18.148,24.78500277]
[1673651196238,20.0,18.177,18.148,24.78500277]
[1673651196665,20.0,18.175,18.148,24.78500277]
[1673651196876,20.0,18.175,18.15,20.0]
[1673651196877,3.76811474,18.174,18.15,20.0]
[1673651197104,3.76811474,18.174,18.151,20.0]
[1673651197418,3.76811474,18.176,18.151,20.0]
[1673651197632,3.76811474,18.176,18.151,44.78500277]
[1673651197838,20.76811474,18.176,18.151,44.78500277]
[1673651198030,20.76811474,18.176,18.152,20.0]
[1673651198031,3.76811474,18.176,18.152,20.0]
[1673651198361,3.76811474,18.176,18.153,44.78500277]
[1673651199081,3.76811474,18.176,18.153,20.0]
[1673651199419,3.76811474,18.176,18.15,24.78500277]
[1673651199607,20.76811474,18.176,18.152,20.0]
[1673651199817,20.76811474,18.176,18.153,44.78500277]
[1673651200247,3.76811474,18.176,18.153,44.78500277]
[1673651200454,23.76811474,18.178,18.154,20.0]
[1673651200783,23.76811474,18.178,18.155,44.78500277]
[1673651200988,3.76811474,18.175,18.144,20.0]
[1673651201202,40.76811474,18.175,18.145,20.0]
[1673651201409,202.56811474,18.175,18.145,25.63996361]
[1673651201609,237.51248821,18.175,18.14,31.1133535]
[1673651201817,4.3096522,18.173,18.143,25.63996361]
[1673651202020,4.3096522,18.171,18.143,25.63996361]
[1673651202233,4.3096522,18.169,18.143,25.63996361]
[1673651202668,20.0,18.168,18.143,25.63996361]
[1673651202867,24.3096522,18.169,18.143,25.63996361]
[1673651202868,4.3096522,18.167,18.144,20.0]
[1673651203077,4.3096522,18.168,18.14,31.1133535]
[1673651203300,4.3096522,18.168,18.146,20.0]
[1673651203513,4.3096522,18.168,18.147,17.0]
[1673651203836,4.3096522,18.168,18.147,42.63996361]
[1673651204024,4.3096522,18.169,18.148,45.63996361]
[1673651204449,4.3096522,18.169,18.149,45.63996361]
[1673651204667,4.3096522,18.169,18.151,20.0]
[1673651205191,4.3096522,18.169,18.152,25.63996361]
[1673651205401,4.3096522,18.169,18.153,20.0]
[1673651205615,117.7585,18.17,18.153,20.0]
[1673651205823,117.7585,18.17,18.154,25.63996361]
[1673651206141,117.7585,18.17,18.155,17.0]
[1673651206356,117.7585,18.17,18.156,20.0]
[1673651206554,117.7585,18.17,18.156,45.63996361]
[1673651206767,117.7585,18.17,18.157,17.0]
[1673651206972,117.7585,18.17,18.158,20.0]
[1673651207725,117.7585,18.17,18.156,20.0]
[1673651208361,117.7585,18.17,18.156,45.63996361]
[1673651209310,117.7585,18.17,18.156,20.0]
[1673651209521,20.0,18.168,18.141,20.0]
[1673651209831,2.13609115,18.167,18.143,25.63996361]
[1673651212038,2.13609115,18.167,18.14,37.4741335]
[1673651212248,2.13609115,18.167,18.141,25.63996361]
[1673651212644,2.13609115,18.167,18.142,20.0]
[1673651213073,19.13609115,18.167,18.142,20.0]
[1673651213298,19.13609115,18.167,18.141,20.0]
[1673651213491,20.0,18.166,18.141,20.0]
[1673651213701,2.28452466,18.165,18.141,20.0]
[1673651213921,2.28452466,18.165,18.142,26.49448878]
[1673651214118,2.28452466,18.165,18.143,20.0]
[1673651214336,2.28452466,18.169,18.143,20.0]
[1673651214566,2.28452466,18.169,18.145,20.0]
[1673651214774,20.0,18.169,18.146,20.0]
[1673651214959,20.0,18.168,18.146,46.49448878]
[1673651215175,1.53992699,18.167,18.146,46.49448878]
[1673651215385,1.53992699,18.167,18.146,20.0]
[1673651215825,1.53992699,18.167,18.142,20.0]
[1673651216030,18.53992699,18.167,18.142,20.0]
[1673651216348,2.20463985,18.165,18.142,20.0]
[1673651216559,19.20463985,18.165,18.14,31.1133535]
[1673651216761,3.76735379,18.163,18.14,31.1133535]
[1673651216978,20.76735379,18.163,18.14,31.1133535]
[1673651217173,20.0,18.16,18.14,31.1133535]
[1673651217385,4.32342184,18.158,18.14,31.1133535]
[1673651217588,4.32342184,18.156,18.14,31.1133535]
[1673651217826,24.32342184,18.158,18.14,31.1133535]
[1673651218557,4.32342184,18.158,18.14,31.1133535]
[1673651218766,4.32342184,18.158,18.14,57.60784228]
[1673651218985,4.32342184,18.158,18.14,22.60784228]
[1673651219185,4.32342184,18.158,18.141,26.49448878]
[1673651219388,117.41852184,18.165,18.136,44.6736662]
[1673651219718,117.41852184,18.165,18.137,168.16183]
[1673651219937,117.41852184,18.165,18.141,44.6736662]
[1673651220241,113.0951,18.165,18.142,20.0]
[1673651220553,113.0951,18.165,18.143,37.0]
[1673651220766,113.0951,18.165,18.144,20.0]
[1673651220984,113.0951,18.165,18.144,46.42458645]
[1673651221481,46.30873695,18.178,18.145,52.78361645]
[1673651221698,108.0283,18.177,18.146,20.0]